bitfinex-derivatives/quotes_SOLF0:USTF0_20240904
["timestamp","ask_amount","ask_price","bid_price","bid_amount"]
[1725443125684,0.74909829,130.69,130.66,9.47844532]
[1725443126097,3.8268,130.68,130.66,9.47844532]
[1725443127889,3.88192927,130.69,130.66,9.47844532]
[1725443128697,3.8267,130.68,130.66,0.04844532]
[1725443129494,0.05532927,130.69,130.66,9.47844532]
[1725443129799,0.05532927,130.69,130.67,9.43]
[1725443129985,0.05532927,130.69,130.68,9.43]
[1725443131790,3.8257,130.72,130.68,9.43]
[1725443131993,3.8257,130.72,130.7,9.43]
[1725443132701,3.87847057,130.72,130.7,9.47905848]
[1725443133986,3.87847057,130.72,130.7,0.04905848]
[1725443134190,0.05277057,130.72,130.7,0.04905848]
[1725443134588,0.42827057,130.76,130.7,0.04905848]
[1725443134791,24.22330484,130.75,130.7,0.04905848]
[1725443134994,4.49764792,130.74,130.7,0.04905848]
[1725443135202,3.8258,130.71,130.7,0.04905848]
[1725443138698,3.88318677,130.72,130.7,0.04905848]
[1725443140703,3.8258,130.71,130.7,0.04905848]
[1725443142209,3.88328677,130.72,130.7,0.04905848]
[1725443144409,3.8258,130.71,130.7,0.04905848]
[1725443149717,0.05758677,130.72,130.7,0.04905848]
[1725443149909,0.05758677,130.72,130.71,23.53]
[1725443150916,0.69321039,130.75,130.71,23.53]
[1725443151217,4.51791039,130.75,130.71,23.53]
[1725443151407,3.8247,130.75,130.71,23.53]
[1725443152008,0.69312991,130.74,130.71,23.53]
[1725443152812,0.42827057,130.76,130.7,0.04905848]
[1725443153015,0.69311728,130.75,130.7,23.57905848]
[1725443153408,4.51771728,130.75,130.71,3.8258]
[1725443153611,0.42827057,130.76,130.71,3.8258]
[1725443153816,0.69312845,130.75,130.71,3.8258]
[1725443155016,0.69312845,130.75,130.72,23.53]
[1725443155721,4.51782845,130.75,130.72,23.53]
[1725443155923,3.8247,130.75,130.72,23.53]
[1725443156823,3.825,130.74,130.7,23.57905848]
[1725443157617,2.6483,130.77,130.7,23.57905848]
[1725443157822,31.88112108,130.76,130.7,0.04905848]
[1725443158125,9.41,130.74,130.7,0.04905848]
[1725443158315,3.8257,130.72,130.7,0.04905848]
[1725443159825,13.1787423,130.74,130.7,0.04905848]
[1725443160127,1.4012,130.75,130.7,0.04905848]
[1725443160428,3.8258,130.71,130.7,0.04905848]
[1725443162425,0.69339656,130.71,130.65,23.54]
[1725443162624,1.314,130.72,130.65,23.54]
[1725443162821,3.827,130.67,130.65,23.54]
[1725443163028,1.3225,130.7,130.65,23.54]
[1725443163332,3.827,130.67,130.66,0.05796565]
[1725443170628,0.05684088,130.69,130.66,23.59796565]
[1725443171735,0.05684088,130.69,130.68,23.54]
[1725443173930,0.05684088,130.69,130.67,27.3669]
[1725443177338,0.05684088,130.69,130.66,3.88506565]
[1725443177638,3.827,130.67,130.66,0.05796565]
[1725443177837,0.05684088,130.69,130.66,0.05796565]
[1725443178238,3.8269,130.68,130.66,0.05796565]
[1725443178432,0.05684088,130.69,130.66,0.05796565]
[1725443178936,3.827,130.67,130.66,0.05796565]
[1725443180538,3.8278,130.65,130.59,23.54]
[1725443180743,3.8278,130.65,130.6,3.8288]
[1725443181335,3.8279,130.64,130.6,3.8288]
[1725443181540,0.05405627,130.63,130.61,27.41896898]
[1725443181839,0.04906303,130.63,130.61,23.59026898]
[1725443182041,0.04906303,130.63,130.61,0.05026898]
[1725443182838,23.58906303,130.63,130.54,23.54]
[1725443183038,23.54,130.61,130.52,26.3574]
[1725443183243,23.54,130.61,130.52,30.24898143]
[1725443183739,23.54,130.6,130.52,24.9577]
[1725443183936,23.54,130.6,130.55,0.05188729]
[1725443183937,0.05844673,130.57,130.55,0.05188729]
[1725443184141,3.88854673,130.57,130.55,0.05188729]
[1725443184441,0.05844673,130.57,130.55,0.05188729]
[1725443184748,3.8302,130.56,130.55,0.05188729]
[1725443188348,0.05844673,130.57,130.49,133.52162298]
[1725443188551,0.05844673,130.57,130.47,23.54]
[1725443188552,23.54,130.54,130.47,23.54]
[1725443188951,3.8317,130.51,130.47,23.54]
[1725443189347,0.0519588,130.5,130.48,0.04967132]
[1725443194761,0.0519588,130.5,130.48,3.88207132]
[1725443201556,0.0519588,130.5,130.48,0.04967132]
[1725443204859,0.0519588,130.5,130.49,3.8322]
[1725443207755,0.0519588,130.5,130.49,3.8322]
[1725443208965,0.0519588,130.5,130.48,3.88207132]
[1725443210159,0.0519588,130.5,130.49,13.2622]
[1725443211458,0.0519588,130.5,130.49,3.8322]
[1725443211663,0.0519588,130.5,130.49,13.2622]
[1725443212060,0.0519588,130.5,130.49,3.8322]
[1725443214663,0.0519588,130.5,130.48,0.04967132]
[1725443215566,27.38849942,130.51,130.41,1.3813]
[1725443215567,23.57,130.49,130.41,1.3813]
[1725443215771,23.57,130.49,130.41,5.26764467]
[1725443215971,27.37316716,130.51,130.42,23.57]
[1725443216167,23.57,130.51,130.42,23.57]
[1725443216370,27.42178829,130.51,130.43,3.834]
[1725443216570,0.04831072,130.48,130.46,0.05006463]
[1725443217074,3.8331,130.47,130.46,0.05006463]
[1725443217762,3.88101072,130.48,130.46,0.05006463]
[1725443218672,3.8328,130.47,130.46,0.05006463]
[1725443220270,3.8332,130.46,130.42,3.8342]
[1725443220571,23.57,130.49,130.42,3.8342]
[1725443220783,3.8331,130.47,130.42,3.8342]
[1725443221288,0.05173893,130.46,130.43,0.05372552]
[1725443222068,0.05173893,130.46,130.43,3.88772552]
[1725443222275,0.05173893,130.46,130.43,0.05372552]
[1725443222577,0.05173893,130.46,130.44,3.8336]
[1725443222977,0.05173893,130.46,130.43,0.05372552]
[1725443223680,0.05173893,130.46,130.44,3.8335]
[1725443224179,0.05173893,130.46,130.43,0.05372552]
[1725443224877,0.05173893,130.46,130.45,3.8334]
[1725443227577,0.05173893,130.46,130.44,3.8336]
[1725443227974,0.05173893,130.46,130.43,0.05372552]
[1725443228179,0.05173893,130.46,130.44,3.8337]
[1725443228582,3.88503893,130.46,130.43,0.05372552]
[1725443228787,0.05173893,130.46,130.43,0.05372552]
[1725443229284,3.8337,130.44,130.43,0.05372552]
[1725443231289,0.05173893,130.46,130.43,0.05372552]
[1725443231792,0.05173893,130.46,130.44,3.8335]
[1725443232588,3.88493893,130.46,130.43,3.88752552]
[1725443233980,3.88493893,130.46,130.43,0.05372552]
[1725443233981,0.05173893,130.46,130.43,0.05372552]
[1725443234288,0.05173893,130.46,130.36,4.1303]
[1725443234289,3.8343,130.43,130.39,3.8351]
[1725443234680,2.8178,130.45,130.39,3.8351]
[1725443235077,3.8349,130.4,130.36,3.8359]
[1725443235293,0.05376154,130.39,130.37,0.05375712]
[1725443235681,3.88896154,130.39,130.37,0.05375712]
[1725443236907,0.05376154,130.39,130.37,0.05375712]
[1725443237490,0.05376154,130.39,130.37,3.88945712]
[1725443240789,0.05376154,130.39,130.37,0.05375712]
[1725443241089,0.05376154,130.39,130.3,27.44876]
[1725443241090,23.57,130.39,130.3,27.44876]
[1725443241294,1.3191,130.38,130.3,23.57]
[1725443241487,3.8362,130.36,130.32,3.8371]
[1725443241686,3.8362,130.36,130.32,23.57]
[1725443242087,0.04930225,130.35,130.33,0.04951146]
[1725443242490,0.04930225,130.35,130.33,3.88631146]
[1725443243502,0.04930225,130.35,130.33,0.04951146]
[1725443245994,3.8366,130.34,130.33,0.04951146]
[1725443246298,0.04930225,130.35,130.27,23.57]
[1725443246503,3.8376,130.31,130.27,27.4086]
[1725443247493,0.05412145,130.3,130.28,0.05242542]
[1725443247888,3.89212145,130.3,130.28,0.05242542]
[1725443248084,0.05412145,130.3,130.28,3.89082542]
[1725443249292,0.05412145,130.3,130.29,3.8381]
[1725443251491,0.05412145,130.3,130.28,3.89072542]
[1725443252302,0.05412145,130.3,130.29,3.8381]
[1725443252795,0.05412145,130.3,130.29,27.4081]
[1725443253794,1.4481,130.37,130.29,23.57]
[1725443253997,1.4481,130.37,130.32,23.57]
[1725443254200,3.8364,130.35,130.32,23.57]
[1725443254401,1.4481,130.37,130.32,23.57]
[1725443254902,3.8915546,130.36,130.33,0.05410426]
[1725443255402,3.8915546,130.36,130.33,3.89100426]
[1725443255605,0.0552546,130.36,130.33,0.05410426]
[1725443256000,0.0552546,130.36,130.34,3.8365]
[1725443258703,0.0552546,130.36,130.33,3.89090426]
[1725443260010,0.0552546,130.36,130.33,0.05410426]
[1725443260408,3.8366,130.34,130.33,0.05410426]
[1725443261516,3.8374,130.32,130.26,27.47775099]
[1725443261714,3.8374,130.32,130.26,23.57]
[1725443261912,3.8374,130.32,130.28,3.8383]
[1725443262112,3.8374,130.32,130.27,3.75535638]
[1725443262314,3.8376,130.31,130.27,3.75535638]
[1725443262518,0.05289669,130.3,130.28,3.89195693]
[1725443262815,0.05730507,130.3,130.28,0.05355693]
[1725443263215,0.05730507,130.3,130.29,3.8381]
[1725443264212,0.05730507,130.3,130.28,0.05355693]
[1725443265718,3.89530507,130.3,130.28,0.05355693]
[1725443272123,3.89530507,130.3,130.28,3.89195693]
[1725443274321,3.89530507,130.3,130.28,0.05355693]
[1725443279225,3.89530507,130.3,130.28,3.89195693]
[1725443281029,0.05730507,130.3,130.28,3.89195693]
[1725443282329,3.89510507,130.3,130.28,3.89195693]
[1725443283328,3.89510507,130.3,130.28,0.05355693]
[1725443284532,3.89510507,130.3,130.28,3.89195693]
[1725443285432,0.05730507,130.3,130.28,0.05355693]
[1725443285731,3.8381,130.29,130.28,0.05355693]
[1725443287035,3.8391,130.26,130.13,37.72]
[1725443287223,9.43,130.27,130.17,2.7995]
[1725443287427,9.43,130.25,130.19,9.43]
[1725443288035,0.05439735,130.23,130.21,9.48415242]
[1725443288327,0.05189085,130.23,130.21,0.05710057]
[1725443288525,0.05189085,130.23,130.21,3.89750057]
[1725443288722,0.05189085,130.23,130.21,13.32750057]
[1725443289148,13.2702,130.22,130.21,0.05710057]
[1725443289430,13.22521779,130.22,130.14,9.43]
[1725443289621,9.43,130.2,130.14,9.43]
[1725443290026,3.8415,130.18,130.12,5.2287679]
[1725443290327,0.05764694,130.16,130.14,0.04839441]
[1725443290926,0.05764694,130.16,130.15,27.4622]
[1725443291832,3.84,130.23,130.19,3.8408]
[1725443292722,27.39006881,130.24,130.19,3.8408]
[1725443292723,3.8403,130.22,130.19,3.8408]
[1725443292932,3.89828435,130.22,130.2,0.0490094]
[1725443293138,0.05798435,130.22,130.2,3.8897094]
[1725443293527,0.05798435,130.22,130.2,0.0490094]
[1725443295628,3.89818435,130.22,130.2,0.0490094]
[1725443295834,0.05798435,130.22,130.2,0.0490094]
[1725443296035,0.05798435,130.22,130.2,3.8897094]
[1725443297941,0.05798435,130.22,130.2,0.0490094]
[1725443303637,0.05798435,130.22,130.21,3.8405]
[1725443305143,0.05798435,130.22,130.2,3.8896094]
[1725443307645,0.05798435,130.22,130.21,3.8405]
[1725443308737,0.05798435,130.22,130.2,0.0490094]
[1725443308962,23.67798435,130.22,130.2,0.0490094]
[1725443309540,3.8405,130.21,130.2,0.0490094]
[1725443309940,13.2905,130.21,130.2,0.0490094]
[1725443313744,3.8405,130.21,130.2,0.0490094]
[1725443317958,0.05798435,130.22,130.2,0.0490094]
[1725443319753,0.05798435,130.22,130.21,3.8405]
[1725443320857,0.05798435,130.22,130.2,0.0490094]
[1725443321161,3.89838435,130.22,130.2,0.0490094]
[1725443321952,3.8405,130.21,130.2,0.0490094]
[1725443322163,0.05798435,130.22,130.2,0.0490094]
[1725443322758,3.89828435,130.22,130.2,3.8897094]
[1725443322962,0.05798435,130.22,130.2,3.8897094]
[1725443324867,3.89828435,130.22,130.2,0.0490094]
[1725443328069,3.8405,130.21,130.2,0.0490094]
[1725443333465,13.2905,130.21,130.2,0.0490094]
[1725443341072,3.8405,130.21,130.2,0.0490094]
[1725443341273,0.05798435,130.22,130.2,0.0490094]
[1725443341470,9.50798435,130.22,130.2,0.0490094]
[1725443343480,13.34828435,130.22,130.2,0.0490094]
[1725443343773,0.05798435,130.22,130.2,0.0490094]
[1725443347280,0.05798435,130.22,130.21,3.8405]
[1725443352180,0.05798435,130.22,130.2,3.8896094]
[1725443352570,9.50798435,130.22,130.2,0.0490094]
[1725443352772,9.45,130.21,130.14,102.22566092]
[1725443352977,9.45,130.18,130.14,102.22566092]
[1725443353979,0.05066211,130.17,130.15,3.8999768]
[1725443361483,9.45,130.16,130.04,26.90066585]
[1725443361683,9.45,130.16,130.0,226.0]
[1725443361684,9.45,130.14,130.08,9.45]
[1725443362588,3.89663901,130.12,130.1,0.05546941]
[1725443362789,9.45,130.11,130.1,0.05546941]
[1725443363092,13.2934,130.11,130.1,0.05546941]
[1725443363389,3.8434,130.11,130.1,0.05546941]
[1725443364087,0.05333901,130.12,130.1,0.05546941]
[1725443364893,0.05333901,130.12,130.1,3.89906941]
[1725443365483,0.05333901,130.12,130.11,3.8434]
[1725443370395,3.89643901,130.12,130.1,0.05546941]
[1725443375196,0.05333901,130.12,130.1,3.89916941]
[1725443376995,3.89643901,130.12,130.1,3.89916941]
[1725443377892,0.05333901,130.12,130.1,3.89916941]
[1725443382501,3.89643901,130.12,130.1,3.89916941]
[1725443383806,3.89643901,130.12,130.1,0.05546941]
[1725443384206,3.8434,130.11,130.1,0.05546941]
[1725443389308,13.2834,130.11,130.1,0.05546941]
[1725443390310,9.44,130.11,129.94,7.6964]
[1725443390512,9.44,130.05,129.95,3.83589213]
[1725443390714,3.80006782,130.04,129.97,9.44]
[1725443390907,9.44,130.05,129.99,9.44]
[1725443391112,9.44,130.06,130.01,9.44]
[1725443391312,0.05478519,130.05,130.03,3.8456]
[1725443391610,0.05482665,130.05,130.03,3.89940878]
[1725443392415,0.05482665,130.05,130.04,3.8455]
[1725443396818,0.05482665,130.05,130.03,3.89940878]
[1725443400318,3.8455,130.04,130.03,0.05380878]
[1725443403123,3.90012665,130.05,130.03,0.05380878]
[1725443403329,0.05482665,130.05,130.03,0.05380878]
[1725443404528,13.2855,130.04,130.03,0.05380878]
[1725443404719,9.44,130.04,129.95,5.28894936]
[1725443405019,9.44,130.02,129.96,9.44]
[1725443405223,1.3359,130.07,129.97,9.44]
[1725443405423,9.44,130.04,129.97,9.44]
[1725443405727,0.05726329,130.02,129.99,0.02484464]
[1725443405926,3.92140841,130.02,129.99,0.02484464]
[1725443406128,9.44,130.01,129.99,0.02484464]
[1725443406427,9.44,130.0,129.99,0.02484464]
[1725443407120,9.44,130.0,129.93,9.44]
[1725443407316,9.44,130.0,129.91,3.77538546]
[1725443407317,9.44,129.97,129.91,3.77538546]
[1725443407521,3.848,129.96,129.92,3.8489]
[1725443408028,0.05894494,129.95,129.92,3.8489]
[1725443408428,0.05894494,129.95,129.9,9.44]
[1725443408631,0.05894494,129.95,129.88,2.7275]
[1725443408926,0.05894494,129.95,129.9,9.44]
[1725443409121,3.90714494,129.95,129.91,3.8492]
[1725443409519,3.90714494,129.95,129.92,3.849]
[1725443409721,0.05894494,129.95,129.92,3.849]
[1725443410332,0.05894494,129.95,129.91,3.8493]
[1725443410625,0.05894494,129.95,129.9,23.66]
[1725443410930,0.05894494,129.95,129.92,3.8489]
[1725443414235,0.05894494,129.95,129.88,1.417]
[1725443414236,3.8485,129.94,129.88,1.417]
[1725443414426,0.0565717,129.92,129.88,1.417]
[1725443414622,0.0565717,129.92,129.9,3.8494]
[1725443417026,42.58325054,130.2,129.9,23.66]
[1725443417232,7.658,130.02,129.92,23.66]
[1725443417432,28.81341182,130.0,129.92,27.5624588]
[1725443417732,3.848,129.96,129.93,3.8487]
[1725443418033,0.05329286,129.96,129.93,0.0488082]
[1725443418227,0.05329286,129.96,129.94,23.66]
[1725443419830,0.05329286,129.96,129.95,3.8482]
[1725443421636,0.05329286,129.96,129.94,27.5083]
[1725443422027,3.90119286,129.96,129.94,27.5083]
[1725443422231,0.05329286,129.96,129.94,27.5083]
[1725443423939,0.05329286,129.96,129.95,3.8482]
[1725443425844,3.90129286,129.96,129.93,0.0488082]
[1725443426027,0.05329286,129.96,129.93,0.0488082]
[1725443426234,23.66,129.95,129.93,0.0488082]
[1725443426435,3.8485,129.94,129.93,0.0488082]
[1725443426931,3.8499,129.89,129.84,80.33582726]
[1725443427246,23.66,129.89,129.84,1.3098]
[1725443427437,3.8503,129.88,129.84,5.1611]
[1725443428133,3.90804829,129.87,129.83,3.8516]
[1725443428535,0.05724829,129.87,129.82,3.80926327]
[1725443428741,0.05724829,129.87,129.82,23.66]
[1725443428938,0.05724829,129.87,129.85,3.8511]
[1725443431051,0.05724829,129.87,129.86,3.8508]
[1725443432145,0.05724829,129.87,129.82,3.89124499]
[1725443432445,0.05724829,129.87,129.82,23.66]
[1725443432653,0.05724829,129.87,129.82,3.83741243]
[1725443432944,0.05724829,129.87,129.82,23.66]
[1725443433239,0.05724829,129.87,129.85,3.8509]
[1725443433645,0.05724829,129.87,129.84,23.66]
[1725443433842,0.05724829,129.87,129.86,3.8508]
[1725443434545,3.77753069,129.93,129.84,23.66]
[1725443434748,23.66,129.94,129.84,23.66]
[1725443434948,3.8499,129.9,129.84,23.66]
[1725443435148,3.8499,129.9,129.86,3.8506]
[1725443435441,0.0490094,129.89,129.87,0.05393808]
[1725443435841,0.0490094,129.89,129.87,3.90443808]
[1725443436242,0.0490094,129.89,129.87,0.05393808]
[1725443436243,3.8990094,129.89,129.87,0.05393808]
[1725443436546,0.0490094,129.89,129.87,0.05393808]
[1725443437344,3.8502,129.88,129.87,0.05393808]
[1725443439040,27.5102,129.88,129.87,0.05393808]
[1725443441841,3.8992094,129.89,129.87,0.05393808]
[1725443442144,0.0490094,129.89,129.87,0.05393808]
[1725443442750,3.8502,129.88,129.87,0.05393808]
[1725443446747,3.8517,129.83,129.75,4.122]
[1725443446951,23.66,129.86,129.76,23.66]
[1725443447147,23.66,129.86,129.79,3.8529]
[1725443447553,23.66,129.86,129.75,4.122]
[1725443447748,3.8522,129.82,129.78,3.853]
[1725443448049,0.0550493,129.81,129.75,7.92370514]
[1725443448647,0.0550493,129.81,129.76,23.66]
[1725443449452,0.0550493,129.81,129.79,3.8527]
[1725443449853,0.0550493,129.81,129.8,3.8526]
[1725443452055,4.2934,129.88,129.83,3.8517]
[1725443452654,3.8508,129.87,129.83,3.8517]
[1725443452956,4.2934,129.88,129.83,3.8517]
[1725443453158,4.2934,129.88,129.84,0.05047278]
[1725443453159,3.8509,129.86,129.84,0.05047278]
[1725443455264,3.8511,129.85,129.84,0.05047278]
[1725443456055,3.8511,129.86,129.84,0.05047278]
[1725443457667,3.8511,129.85,129.84,0.05047278]
[1725443462169,27.5111,129.85,129.84,0.05047278]
[1725443463476,3.8521,129.82,129.79,3.8529]
[1725443463674,23.66,129.85,129.76,1.4216]
[1725443464376,23.66,129.85,129.77,23.66]
[1725443464572,0.05630646,129.82,129.77,23.66]
[1725443465473,0.05630646,129.82,129.81,3.8523]
[1725443465679,0.05630646,129.82,129.81,27.5123]
[1725443466377,0.05630646,129.82,129.8,3.8525]
[1725443467770,3.8523,129.81,129.76,25.0816]
[1725443468079,0.05630646,129.82,129.76,1.4216]
[1725443468574,3.8528,129.8,129.77,3.8533]
[1725443469080,3.83500144,129.82,129.7,1.3668]
[1725443469383,0.05560089,129.77,129.7,31.61849738]
[1725443469573,3.854,129.76,129.73,3.8547]
[1725443470177,0.05560089,129.77,129.7,31.7044206]
[1725443470378,23.66,129.79,129.7,31.7044206]
[1725443470580,0.05168593,129.75,129.7,31.7044206]
[1725443470785,0.05168593,129.75,129.74,3.8544]
[1725443471282,0.05168593,129.75,129.7,8.0444206]
[1725443471581,0.05168593,129.75,129.7,31.7044206]
[1725443471784,0.05168593,129.75,129.73,3.8545]
[1725443471973,0.05168593,129.75,129.7,31.7044206]
[1725443472176,3.8545,129.74,129.7,9.1252206]
[1725443472486,0.05168593,129.75,129.7,5.2696206]
[1725443473184,3.90578593,129.75,129.71,3.8551]
[1725443473386,3.90578593,129.75,129.7,5.2696206]
[1725443473387,0.05168593,129.75,129.7,5.2696206]
[1725443473588,0.05168593,129.75,129.7,28.9296206]
[1725443474084,0.05168593,129.75,129.65,2.7419]
[1725443474381,0.0519701,129.71,129.7,3.8554]
[1725443474587,0.0565323,129.72,129.7,23.66]
[1725443474887,0.05272119,129.72,129.71,3.8553]
[1725443475686,7.706,129.96,129.71,23.66]
[1725443475882,71.39001201,130.0,129.71,23.66]
[1725443475883,0.69984382,129.95,129.71,26.411]
[1725443476184,2.04564382,129.94,129.72,3.8857835]
[1725443476381,23.66,129.91,129.74,23.66]
[1725443476579,0.05513286,129.84,129.83,23.66]
[1725443476780,25.0095,129.93,129.83,23.66]
[1725443476781,0.05556194,129.85,129.83,27.46252378]
[1725443476981,3.85110602,129.9,129.83,27.46252378]
[1725443477182,0.05051146,129.88,129.85,3.8509]
[1725443477486,0.05051146,129.88,129.85,3.90161784]
[1725443477684,0.05051146,129.88,129.86,3.8508]
[1725443478083,0.05051146,129.88,129.85,29.60071784]
[1725443479687,0.05051146,129.88,129.85,33.45181784]
[1725443484485,0.05051146,129.88,129.86,3.8508]
[1725443484788,0.05051146,129.88,129.85,29.60071784]
[1725443485984,0.05051146,129.88,129.86,3.8506]
[1725443487393,0.05051146,129.88,129.87,3.8505]
[1725443491792,29.55,129.99,129.87,29.55]
[1725443491991,0.70069233,129.96,129.87,29.55]
[1725443492187,0.70069233,129.96,129.83,34.77952378]
[1725443492188,29.55,129.94,129.83,34.77952378]
[1725443492392,3.8501,129.89,129.86,3.8507]
[1725443492795,3.90205413,129.89,129.86,3.9054521]
[1725443492984,3.8502,129.88,129.86,0.0547521]
[1725443493991,3.90205413,129.89,129.86,3.9055521]
[1725443494596,0.05195413,129.89,129.87,3.8504]
[1725443495695,3.8505,129.87,129.86,0.0547521]
[1725443495900,0.05195413,129.89,129.86,0.0547521]
[1725443496400,3.90205413,129.89,129.86,3.9053521]
[1725443497103,3.90205413,129.89,129.87,3.8505]
[1725443498096,0.05195413,129.89,129.87,3.8505]
[1725443499100,3.90195413,129.89,129.86,3.9054521]
[1725443499797,0.05195413,129.89,129.88,3.8502]
[1725443499998,2.6957,129.97,129.88,23.65]
[1725443500301,0.70066682,129.96,129.9,23.65]
[1725443500698,3.8492,129.92,129.9,23.65]
[1725443500999,0.05254646,129.92,129.9,0.05477906]
[1725443501403,3.8493,129.91,129.9,0.05477906]
[1725443503199,3.90174646,129.92,129.9,0.05477906]
[1725443503602,0.05254646,129.92,129.9,0.05477906]
[1725443503799,0.05254646,129.92,129.9,3.90437906]
[1725443504397,0.05254646,129.92,129.91,3.8493]
[1725443505301,0.05254646,129.92,129.9,31.3206344]
[1725443505506,0.05254646,129.92,129.9,27.55427906]
[1725443506108,0.05254646,129.92,129.9,3.90427906]
[1725443508105,0.05254646,129.92,129.91,3.8493]
[1725443510907,0.05254646,129.92,129.9,0.05477906]
[1725443510908,0.05254646,129.92,129.9,3.90427906]
[1725443511208,0.05254646,129.92,129.9,7.69845223]
[1725443511902,3.90174646,129.92,129.9,0.05477906]
[1725443512307,0.05254646,129.92,129.9,3.90437906]
[1725443513021,3.90164646,129.92,129.9,0.05477906]
[1725443516012,3.8493,129.91,129.9,0.05477906]
[1725443518312,3.8511,129.86,129.83,28.87952378]
[1725443518512,23.65,129.89,129.83,5.22952378]
[1725443518716,23.65,129.89,129.83,3.80252378]
[1725443518918,3.8513,129.85,129.82,3.8519]
[1725443519510,3.90328545,129.85,129.82,7.74260372]
[1725443519709,0.05198545,129.85,129.84,23.65]
[1725443520821,0.05198545,129.85,129.84,27.5014]
[1725443521512,27.55082894,129.93,129.87,3.8504]
[1725443522217,3.8498,129.9,129.87,3.8504]
[1725443522520,3.90216921,129.9,129.87,3.89994085]
[1725443522722,0.05236921,129.9,129.88,3.8502]
[1725443524117,3.90196921,129.9,129.88,3.8502]
[1725443524622,3.90196921,129.9,129.87,3.89994085]
[1725443525012,3.90196921,129.9,129.88,3.8502]
[1725443525217,3.90196921,129.9,129.87,0.04954085]
[1725443525614,3.90196921,129.9,129.87,3.89994085]
[1725443527225,0.05236921,129.9,129.87,3.89994085]
[1725443527620,3.90216921,129.9,129.87,3.89994085]
[1725443528023,3.90216921,129.9,129.88,3.8502]
[1725443528327,3.90216921,129.9,129.87,0.04954085]
[1725443528529,3.90216921,129.9,129.87,3.89994085]
[1725443532517,3.8502,129.88,129.87,0.04954085]
[1725443533425,3.8502,129.88,129.76,1.433]
[1725443533426,23.65,129.88,129.77,23.65]
[1725443533623,23.65,129.85,129.77,23.65]
[1725443533822,3.8512,129.85,129.79,23.65]
[1725443534023,23.65,129.87,129.79,23.65]
[1725443534330,0.0513662,129.84,129.82,0.05920248]
[1725443535530,3.9028662,129.84,129.82,0.05920248]
[1725443536430,0.0513662,129.84,129.83,3.8517]
[1725443536938,0.0513662,129.84,129.82,27.56110248]
[1725443538525,0.0513662,129.84,129.83,3.8517]
[1725443538933,0.0513662,129.84,129.83,27.5017]
[1725443539335,3.8503,129.88,129.84,3.8512]
[1725443539536,1.4423,129.9,129.84,3.8512]
[1725443539730,3.851,129.86,129.83,27.5015]
[1725443539933,1.4423,129.9,129.82,23.65]
[1725443540135,1.4423,129.9,129.79,23.65]
[1725443540136,23.65,129.87,129.79,23.65]
[1725443540337,0.05551305,129.84,129.82,0.05413601]
[1725443541135,3.8517,129.83,129.82,0.05413601]
[1725443541435,3.8517,129.83,129.74,4.1357]
[1725443541436,3.8535,129.78,129.74,6.5866]
[1725443541837,3.8535,129.78,129.74,5.256]
[1725443542035,23.65,129.81,129.71,3.91819577]
[1725443542236,11.51271296,129.83,129.71,3.91819577]
[1725443542237,0.05196417,129.77,129.71,3.91819577]
[1725443542442,0.05196417,129.77,129.7,24.9806]
[1725443542443,0.05196417,129.77,129.75,0.04938018]
[1725443542739,0.05196417,129.77,129.71,3.8552]
[1725443542956,0.05196417,129.77,129.73,0.05904315]
[1725443543243,3.8542,129.75,129.73,0.05904315]
[1725443543539,0.05196417,129.77,129.73,0.05904315]
[1725443544343,3.854,129.76,129.73,0.05904315]
[1725443544533,0.05196417,129.77,129.73,0.05904315]
[1725443544933,3.8542,129.75,129.73,0.05904315]
[1725443545135,0.05196417,129.77,129.73,0.05904315]
[1725443545337,3.8544,129.74,129.73,0.05904315]
[1725443546641,3.8542,129.75,129.73,0.05904315]
[1725443546935,0.05196417,129.77,129.74,23.65]
[1725443547136,3.854,129.76,129.74,23.65]
[1725443547537,3.854,129.76,129.73,0.05904315]
[1725443547839,0.05196417,129.77,129.73,0.05904315]
[1725443548141,0.05196417,129.77,129.74,23.65]
[1725443548539,3.90566417,129.77,129.74,23.65]
[1725443549039,3.90566417,129.77,129.74,27.5044]
[1725443551149,0.05196417,129.77,129.75,23.65]
[1725443551648,3.8525,129.81,129.75,23.65]